Cogmind - Beta 12 @@@ ROGUE MODE // 2023.04.28 @ 02:22:28 Player: Ms Vella Result: Destroyed by G-34 Mercenary with Small Laser Performance ------------- Evolutions (0) 0 Regions Visited (1) 200 Robots Destroyed (8) 40 Value Destroyed (285) 285 Prototype IDs (0) 0 Alien Tech Used (0) 0 Bonus (0) 0 TOTAL SCORE: 525 Bonus ------- None Cogmind --------- Core Integrity 0/250 Matter 272/300 Energy 97/100 System Corruption 0% Temperature Cool (19) Movement Core (350) Ox6 Location -10/Materials Parts ------- > --- POWER (1) -------- (None) > --- PROPULSION (2) --- (None) > --- UTILITY (2) ------ Large Storage Unit > --- WEAPON (2) ------- Small Laser > --- INVENTORY (15) --- Light Ion Engine Large Storage Unit Sensor Array Grenade Launcher Peak State ------------ > --- POWER ------------ Ion Engine > --- PROPULSION ------- Aluminum Leg Aluminum Leg > --- UTILITY ---------- Small Storage Unit Sensor Array > --- WEAPON ----------- Assault Rifle Assault Rifle > --- INVENTORY -------- Small Laser Grenade Launcher [Rating: 7] Favorites ----------- Power Ion Engine Engine Ion Engine Propulsion Aluminum Leg Leg Aluminum Leg Utility Large Storage Unit Device Improved Heat Sink Storage Large Storage Unit Weapon Assault Rifle Energy Gun Small Laser Ballistic Gun Assault Rifle Build | -11 -10 ------- Run | Jun Mat Slots Evolved . | . . Power . | . . Propulsion . | . . Utility . | . . Weapon . | . . Parts Attached 5 | 1 4 Power . | . . Engine . | . . Core . | . . Reactor . | . . Propulsion . | . . Treads . | . . Leg . | . . Wheel . | . . Hover . | . . Flight . | . . Utility 3 | . 3 Device 2 | . 2 Storage 1 | . 1 Processor . | . . Hackware . | . . Protection . | . . Artifact . | . . Weapon 2 | 1 1 Energy Gun 1 | . 1 Energy Cannon . | . . Ballistic Gun 1 | 1 . Ballistic Cannon . | . . Launcher . | . . Special Weapon . | . . Impact Weapon . | . . Slashing Weapon . | . . Piercing Weapon . | . . Special Melee Weapon . | . . Unidentified Prototypes . | . . Parts Lost 6 | . 6 Power 1 | . 1 Propulsion 2 | . 2 Utility 1 | . 1 Weapon 2 | . 2 Highest Loss Streak 3 | . 3 To Critical Strikes . | . . Average Slot Usage (%) 76 | . 76 Engine 13 | . 13 Leg 19 | . 19 Device 9 | . 9 Storage 14 | . 14 Energy Gun 2 | . 2 Ballistic Gun 17 | . 17 Naked Turns . | . . Heaviest Build 28 | 14 28 Greatest Support 20 | 20 20 Greatest Overweight (x) 6 | . 6 Average Overweight (x) 1 | . 1 Largest Inventory Capacity 15 | 8 15 Average Capacity 11 | 8 11 Most Carried 5 | 5 5 Average Carried 3 | 1 3 Final Capacity 15 | 8 15 Final Carried 4 | 1 4 Class Distribution -------------------- 100% | Mutant Dominant Class ---------------- Mutant | -10/Materials Resources | -11 -10 ----------- Run | Jun Mat Matter Collected 432 | 200 232 Remotely . | . . Salvage Created 325 | . 325 Parts 12 | . 12 Haulers Intercepted . | . . Recyclers Shooed . | . . Parts Field Recycled . | . . Retrieved Matter . | . . Parts Self-Destructed . | . . Prevented . | . . Kills | -11 -10 ------- Run | Jun Mat Combat Hostiles Destroyed 8 | . 8 Guns 8 | . 8 Classes Destroyed 1 | . 1 Grunt 8 | . 8 Best Kill Streak 6 | . 6 Combat Bots Only 6 | . 6 Max Kills in Single Turn 1 | . 1 Gunslinging . | . . Exploded . | . . Melee . | . . Uniques/NPCs Destroyed . | . . Combat | -11 -10 -------- Run | Jun Mat Damage Taken 870 | . 870 Core 254 | . 254 Absorbed by Shields . | . . Core Remaining (%) 100 | 100 . Volleys Fired 63 | . 63 Largest 2 | . 2 Hottest 40 | . 40 Shots Fired 93 | . 93 Gun 93 | . 93 Cannon . | . . Launcher . | . . Special . | . . Kinetic 80 | . 80 Thermal 13 | . 13 Explosive . | . . Electromagnetic . | . . Robot Hit Streak 14 | . 14 Robot Miss Streak 3 | . 3 Penetration Max . | . . Secondary Targets 1 | . 1 Max Gunslinging Chain 1 | . 1 Shots Hit Robots 68 | . 68 Core Hits 18 | . 18 Critical Kills . | . . Critical Parts Destroyed . | . . Critical Strikes . | . . Melee Attacks . | . . Impact . | . . Slashing . | . . Piercing . | . . Sneak Attacks . | . . Combat Hostiles . | . . Follow-up Attacks . | . . Damage Inflicted 859 | . 859 Guns 859 | . 859 Cannons . | . . Explosions . | . . Melee . | . . Ramming . | . . Kinetic 770 | . 770 Thermal 89 | . 89 Explosive . | . . Electromagnetic . | . . Impact . | . . Slashing . | . . Piercing . | . . Highest Corruption . | . . Average Corruption . | . . Corruption Purged . | . . Corruption Blocked . | . . Overload Shots . | . . Overflow Damage . | . . Projectiles . | . . Explosions . | . . Melee . | . . Knockbacks . | . . Impact . | . . Kinetic . | . . Secondary . | . . Self-Inflicted Damage . | . . Shots . | . . Rammed . | . . Targets Rammed . | . . Kicked . | . . Crushed . | . . Highest Temperature 65 | . 65 Average Temperature 22 | . 22 Received Heat Transfer 474 | . 474 Siege Activations . | . . Robots Corrupted . | . . Combat Hostiles . | . . Parts Fried . | . . Impact Corruptions . | . . Robots Melted . | . . Combat Hostiles . | . . Parts Melted . | . . Heat Transferred 200 | . 200 Parts Sabotaged . | . . Parts Stolen . | . . Parts Stripped . | . . Power Chain Reactions . | . . Missiles Intercepted . | . . Alert | -11 -10 ------- Run | Jun Mat Peak Influence 170 | . 170 Initial . | . . Average 112 | . 114 Maximum Alert Level . | . . Low Security (%) 100 | 100 100 Level 1 . | . . Level 2 . | . . Level 3 . | . . Level 4 . | . . Level 5 . | . . High Security . | . . Max Security . | . . Squads Dispatched 3 | . 3 Investigation 1 | . 1 Extermination . | . . Reinforcement 2 | . 2 Assault . | . . Garrison . | . . Intercept . | . . Searches Triggered . | . . Construction Impeded . | . . Haulers Reinforced . | . . Active Scanning Responses . | . . Cargo Convoy Interrupts . | . . Stealth | -11 -10 --------- Run | Jun Mat Distress Signals 1 | . 1 Communications Jammed . | . . Distress Signals . | . . Times Spotted 17 | . 17 Peak Tracking Total 7 | . 7 Tactical Retreats . | . . Traps | -11 -10 ------- Run | Jun Mat Traps Triggered . | . . Indirectly . | . . Trap Hack Attempts . | . . Triggered . | . . Disarmed . | . . Reprogrammed . | . . Reused . | . . Traps Extracted . | . . Installed . | . . Triggered . | . . Machines | -11 -10 ---------- Run | Jun Mat Machines Disabled . | . . Max in Single Turn . | . . Machines Repaired . | . . Machines Sabotaged . | . . Overloaded Fab Kills . | . . Hacking | -11 -10 --------- Run | Jun Mat Machines Accessed 1 | . 1 Terminals . | . . Fabricators . | . . Repair Stations . | . . Recycling Units 1 | . 1 Scanalyzers . | . . Garrison Access . | . . Total Hacks 1 | . 1 Successful 1 | . 1 Failed . | . . Catastrophic . | . . Database Lockouts . | . . Manual 1 | . 1 Terminals . | . . Fabricators . | . . Repair Stations . | . . Recycling Units 1 | . 1 Scanalyzers . | . . Garrison Access . | . . Terminal Hacks . | . . Fabricator Hacks . | . . Repair Station Hacks . | . . Recycling Unit Hacks . | . . Scanalyzer . | . . Garrison Access Hacks . | . . Unauthorized Hacks 1 | . 1 Terminals . | . . Fabricators . | . . Repair Stations . | . . Recycling Units 1 | . 1 Tunnel 1 | . 1 Scanalyzers . | . . Garrison Access . | . . Data Cores Recovered . | . . Used . | . . Hacking Detections . | . . Full Trace Events . | . . Feedback Events . | . . Feedback Blocked . | . . Robot Schematics Acquired . | . . Robots Built . | . . Authchips . | . . Time . | . . Total Robot Build Rating . | . . Part Schematics Acquired . | . . Parts Built . | . . Authchips . | . . Time . | . . Total Part Build Rating . | . . Parts Repaired . | . . Time . | . . Parts Recycled . | . . Recycled Matter . | . . Retrieved Matter . | . . Retrieved Components . | . . Parts Scanalyzed . | . . Part Schematics Acquired . | . . Parts Damaged . | . . Bothacking | -11 -10 ------------ Run | Jun Mat Used RIF Installer . | . . Robots Hacked . | . . Non-combat . | . . Combat . | . . Robot Hacks Applied . | . . Relay Couplers Released . | . . Fabnet Peak Effective % . | . . Robots Rewired . | . . Allies Hacked . | . . Hacks Repelled . | . . Allies | -11 -10 -------- Run | Jun Mat Total Allies . | . . Largest Group . | . . Highest-Rated Group . | . . Highest-Rated Ally . | . . Total Orders . | . . Ally Attacks . | . . Total Damage . | . . Kills . | . . Allies Corrupted . | . . Allies Melted . | . . Intel | -11 -10 ------- Run | Jun Mat Robot Analysis Total . | . . Derelict Logs Recovered . | . . Drone Launches . | . . Drone Recoveries . | . . Exploration | -11 -10 ------------- Run | Jun Mat Turns Passed 396 | 7 389 Spaces Moved 118 | 3 115 Core 1 | . 1 Treads . | . . Legs 117 | 3 114 Wheels . | . . Hover . | . . Flight . | . . Fastest Speed 120 | 120 120 Average Speed 193 | 120 195 Slowest Speed 350 | 120 350 Overloaded Moves . | . . Propulsion Burnouts . | . . Robots Hopped . | . . Cave-ins Triggered . | . . Exploration Rate (%) 18 | 2 34 Regions Visited 1 Branch Regions . Pre-discovered Areas 1 | . 1 Known Exits Taken . | . . Unknown Exits Taken 1 | 1 . Scrap Searched . | . . Spaces Dug . | . . Terrain Destroyed . | . . Melee . | . . Projectile . | . . AOE . | . . Terrain Rammed . | . . Walls Destroyed . | . . Machines Disabled . | . . Actions | -11 -10 --------- Run | Jun Mat Total 195 | 8 187 Wait . | . . Move 117 | 2 115 Hop . | . . Pick Up 3 | . 3 Fast Attach 2 | . 2 Attach 1 | . 1 Detach 1 | . 1 Swap 2 | 1 1 Drop 6 | 5 1 Fire 63 | . 63 Melee . | . . Ram . | . . Kick . | . . Crush . | . . Escape Stasis . | . . Rewire . | . . Trap . | . . Miscellaneous . | . . Route ------- -11/Junkyard -10/Materials History --------- Turn | Location | Event 5 | -11/Junkyard | Discovered new exit (range 0) 8 | -11/Junkyard | Entered Materials 312 | -10/Materials | Build established: Mutant 379 | -10/Materials | Core integrity fell below 50% 393 | -10/Materials | Core integrity fell below 20% 397 | -10/Materials | Destroyed by G-34 Mercenary with Small Laser Last Messages --------------- 00355_ Acquired 30 matter. 00356_ W-16 Scout sends out distress signal. 00357_ O-16 Technician: "IFF HANDSHAKE FAILED. SECURING TERMINAL." 00357_ K-01 Serf cleans the Neutrino Reactor. 00362_ O-16 Technician uses terminal to summon reinforcements. 00362_ ALERT: Hostiles spotted, dispatching reinforcements to Terminal M001. 00362_ O-16 Technician locks terminal. 00364_ K-01 Serf collects debris. 00368_ Imp. Heat Sink destroyed. 00371_ K-01 Serf collects debris. 00377_ Ion Engine destroyed. 00379_ K-01 Serf collects debris. 00387_ K-01 Serf cleans the Matter Pump. 00387_ Aluminum Leg destroyed. 00394_ K-01 Serf cleans the Matter Pump. 00394_ K-01 Serf cleans the Neutrino Reactor. 00394_ G-34 Mercenary destroyed. 00396_ K-01 Serf collects debris. 00396_ K-01 Serf cleans the Matter Pump. Map ----- +----------------------------------------------------+ | ?????????????????????????????????????????????????? | | ?????????????????????????????????????????????? ??? | | ????????????????????????????????????????????? ???? | | ??????????????????????????????????????????""" ???? | | ??????????????????????????????????????????"" ????? | | ?????????????????????????????????????????? ????? | | ?????????????????????????????????????????? ?????? | | ???????????????????????????????????????###+###+### | | ??????????????????????? ????????????# | | ??????????????????????# #???????????# | | ??????????????????????+ #????######## | | ??????????????????????# #????# # """ #? | | ??????????????????????# #????# # """ #? | | ??????????????????????# #????# """ +^ """ #? | | ??????????????????????#gw #????# """ # #? | | ??????????????????????# [ #????# """ # #? | | ??????????????????????#*%! #????# # """ #? | | ??????????????????????# =^ #????######## """ #? | | ??????????????????????# ##??????????# """ #? | | ??????????????????????# ## ?????????# #? | | ?????????????????????## ## ????????# #? | | ?????????????????????# ###+######### """ ## | | ?????????????????????# k """ | | ?????????????????????# = """ | | ?????????????????????# "%gk """ | | ?????????????????????# T@ """ | | ?????????????????????# " """ r """ | | ?????????????????????# o """ | | ?????????????????????# w """ ## | | ?????????????????????# """ a""" #? | | ?????????????????????# """ w""" #? | | ?????????????????????# """ """ ########+## #? | | ?????????????????????# #????? ## ##? | | ?????????????????????# k #???? """## #?? | | ?????????????????????# """ """ #???? ??""?#%#?? | | ?????????????????????#r "?" """ #??????????#%#?? | | ????????????????????? ??? "?" ???????????# #?? | | ????????????????????? ??? ?? ???????????# #?? | | ?????????????????????? ???? ??? ???????????# #?? | | ??????????????????????????????????????????####+### | | ??????????????????????????????????????????# = | | ??????????????????????????????????????????# | | ??????????????????????????????????????????# """""" | | ??????????????????????????????????????????+ """""" | | ??????????????????????????????????????????# """""" | | ??????????????????????????????????????????# """""" | | ??????????????????????????????????????????# """""" | | ??????????????????????????????????????????# | | ????????????????????????????????????????# #####+## | | ????????????????????????????????????????# | +----------------------------------------------------+ Best States ------------- Heat Dissipation 39 Energy Generation 10 Energy Capacity 250 Matter Stores 300 Matter Capacity 300 Sight Range 16 Robot Scan Range 14 Terrain Scan Density 10 Evasion (%) 55 Item Schematics ----------------- None Robot Schematics ------------------ None Fabricated ------------ Nothing Alien Tech Used ----------------- None Achievements -------------- None Challenges ------------ None Game ------ Seed HelicalLegField Manual? 0 Play Time 00:06:23 Cumulative 57.7 hours Start 2023.04.28 @ 02:19:02 End 2023.04.28 @ 02:22:28 Sessions 1 Manual Loads 0 Difficulty Rogue Special Mode None Game No. 53 Rogue 8 Adventurer 19 Explorer 26 Win Type - Total 0 Types 0/0/0/0/0/0/0/0/0 Lore% 14 Gallery% 41 Achievement% 66 Wizard Run 0 Options --------- ASCII 0 Keyboard 0 Movement Mouse Keybinds 0 Fullscreen 0 Font 16/Smallcaps Map View 76x50 Tactical HUD 1 Map Filters NONE Filters BRIGHTNESS(125)|SATURATION(75)|LOW_CONTRAST(13,24,33)|SHIFT_HUE(130) Steam 1 RUN: 9d7d8d43-3846-4373-9c41-7ecf0ff4dae2